bitfinex-derivatives/quotes_BTCF0:USTF0_20240830
["timestamp","ask_amount","ask_price","bid_price","bid_amount"]
[1725047880848,0.013,58869.0,58868.0,0.73068]
[1725047881054,0.010746,58869.0,58868.0,0.81562]
[1725047881246,0.010746,58869.0,58868.0,2.06852]
[1725047882252,0.010746,58869.0,58868.0,1.46852]
[1725047882443,0.010746,58869.0,58868.0,0.95892]
[1725047882642,0.010746,58869.0,58868.0,1.46852]
[1725047883052,0.010746,58869.0,58868.0,0.95892]
[1725047883251,0.00815322,58873.0,58872.0,0.084934]
[1725047883457,0.00025489,58876.0,58875.0,0.084929]
[1725047883654,0.00025489,58876.0,58875.0,0.445729]
[1725047884360,0.00025489,58876.0,58875.0,0.084929]
[1725047884746,0.00895199,58876.0,58875.0,0.084929]
[1725047884945,0.00025489,58876.0,58875.0,0.084929]
[1725047885153,0.01025489,58876.0,58875.0,0.085929]
[1725047887754,0.00925489,58876.0,58875.0,0.085929]
[1725047888549,0.00025489,58876.0,58875.0,0.085929]
[1725047888850,0.00925489,58876.0,58875.0,0.085929]
[1725047890352,0.37911089,58876.0,58875.0,0.001]
[1725047890550,1.58214666,58876.0,58875.0,0.001]
[1725047890856,2.00997128,58876.0,58875.0,0.001]
[1725047891056,2.08437128,58876.0,58875.0,0.001]
[1725047892044,1.39944328,58876.0,58875.0,0.001]
[1725047892251,0.88988328,58876.0,58875.0,0.001]
[1725047892444,0.38988328,58876.0,58875.0,0.001]
[1725047893961,0.38133551,58876.0,58875.0,0.001]
[1725047894153,0.32833551,58876.0,58875.0,0.001]
[1725047894359,0.52833551,58876.0,58875.0,0.001]
[1725047894552,0.53698,58876.0,58875.0,0.001]
[1725047895258,0.452052,58876.0,58875.0,0.001]
[1725047896356,0.53698,58876.0,58875.0,0.001]
[1725047896558,0.452052,58876.0,58875.0,0.001]
[1725047899367,0.23859313,58876.0,58875.0,0.001]
[1725047899561,0.22994864,58876.0,58875.0,0.001]
[1725047900063,0.15267941,58876.0,58875.0,0.084929]
[1725047900360,0.07898566,58876.0,58875.0,0.284929]
[1725047900556,0.07898566,58876.0,58875.0,0.084929]
[1725047900961,0.08735966,58876.0,58871.0,0.084934]
[1725047901164,0.08735966,58876.0,58875.0,0.084929]
[1725047901165,0.00925489,58876.0,58875.0,0.084929]
[1725047902056,0.02200751,58876.0,58875.0,0.084929]
[1725047902555,0.01900751,58876.0,58875.0,0.084929]
[1725047902758,0.00625489,58876.0,58875.0,0.084929]
[1725047903064,0.00625489,58876.0,58873.0,0.3608]
[1725047903262,0.01025489,58876.0,58875.0,0.001]
[1725047904055,0.01125489,58876.0,58875.0,0.001]
[1725047904265,0.01125489,58876.0,58875.0,0.085929]
[1725047907775,0.01125489,58876.0,58875.0,0.001]
[1725047907966,0.09618289,58876.0,58875.0,0.001]
[1725047908152,0.69067089,58876.0,58875.0,0.001]
[1725047909158,0.70342351,58876.0,58875.0,0.001]
[1725047909359,0.77315428,58876.0,58875.0,0.001]
[1725047909867,2.27902628,58876.0,58865.0,0.00025489]
[1725047910169,0.169884,58866.0,58865.0,0.00025489]
[1725047910370,0.2,58858.0,58850.0,0.3608]
[1725047910562,0.284964,58852.0,58850.0,0.3608]
[1725047910756,0.06973077,58851.0,58850.0,0.3608]
[1725047910964,0.06973077,58851.0,58844.0,0.3608]
[1725047910965,0.93053077,58851.0,58844.0,0.3608]
[1725047911155,0.2,58846.0,58844.0,0.3608]
[1725047911360,0.20865454,58846.0,58844.0,0.3608]
[1725047912162,0.56945454,58846.0,58839.0,0.1448]
[1725047912362,0.2,58841.0,58837.0,0.084983]
[1725047912568,0.084974,58844.0,58837.0,0.084983]
[1725047912760,0.2,58838.0,58836.0,0.3608]
[1725047912963,0.2,58838.0,58834.0,0.084989]
[1725047913365,0.186,58838.0,58834.0,0.084989]
[1725047913555,0.186,58838.0,58831.0,0.3608]
[1725047913766,0.2,58834.0,58831.0,0.3608]
[1725047914065,0.00025489,58838.0,58833.0,0.2]
[1725047914567,0.14696,58837.0,58831.0,0.3608]
[1725047915563,0.147,58836.0,58831.0,0.3608]
[1725047916267,0.147,58836.0,58835.0,0.084987]
[1725047916964,0.147,58836.0,58831.0,0.445792]
[1725047917172,0.3608,58834.0,58831.0,0.084992]
[1725047917362,0.2,58832.0,58828.0,0.231396]
[1725047917766,0.2,58832.0,58829.0,0.084996]
[1725047917966,0.2,58832.0,58830.0,0.084994]
[1725047918772,0.201,58832.0,58830.0,0.084994]
[1725047919459,0.201,58832.0,58828.0,0.1464]
[1725047919767,0.201,58832.0,58830.0,0.084994]
[1725047920966,0.20943005,58832.0,58830.0,0.084994]
[1725047921269,0.00943005,58832.0,58831.0,0.084993]
[1725047921575,0.00943005,58832.0,58828.0,0.231396]
[1725047921877,0.2,58829.0,58828.0,0.231396]
[1725047922262,0.001,58832.0,58830.0,0.084994]
[1725047922573,0.147,58831.0,58830.0,0.084994]
[1725047924361,0.20938887,58832.0,58828.0,0.1464]
[1725047924567,0.00938887,58832.0,58831.0,0.084993]
[1725047925073,0.14869384,58838.0,58836.0,0.084985]
[1725047925271,0.14704,58837.0,58836.0,0.084985]
[1725047925670,0.14704,58837.0,58832.0,0.084991]
[1725047925966,0.2,58831.0,58830.0,0.084994]
[1725047926372,0.5,58833.0,58832.0,0.084992]
[1725047926576,0.3608,58834.0,58833.0,0.08499]
[1725047926777,0.50784,58834.0,58833.0,0.08499]
[1725047926969,0.3608,58834.0,58833.0,0.08499]
[1725047927275,0.50784,58834.0,58833.0,0.08499]
[1725047929971,0.50784,58834.0,58829.0,0.00025489]
[1725047930170,0.2,58832.0,58829.0,0.00025489]
[1725047931267,0.201,58832.0,58829.0,0.00025489]
[1725047931863,0.001,58832.0,58831.0,0.645793]
[1725047932068,0.00025489,58836.0,58831.0,1.155713]
[1725047932269,0.00025489,58836.0,58835.0,0.084987]
[1725047932778,0.00862758,58836.0,58835.0,0.084987]
[1725047932982,0.00025489,58836.0,58835.0,0.084987]
[1725047934376,0.00125489,58836.0,58835.0,0.084987]
[1725047934571,0.00125489,58836.0,58833.0,0.44579]
[1725047935473,0.00954479,58836.0,58833.0,0.44579]
[1725047935777,0.00954479,58836.0,58834.0,0.084988]
[1725047936284,0.00854479,58836.0,58834.0,0.084988]
[1725047938974,0.00854479,58836.0,58835.0,0.084987]
[1725047939185,0.00025489,58836.0,58835.0,0.229787]
[1725047940075,0.00125489,58836.0,58835.0,0.229787]
[1725047941587,0.00125489,58836.0,58835.0,0.2]
[1725047941879,0.00125489,58836.0,58835.0,0.284987]
[1725047944886,0.00125489,58836.0,58829.0,0.08524989]
[1725047944887,0.084994,58830.0,58829.0,0.08524989]
[1725047945087,0.445794,58830.0,58829.0,0.08524989]
[1725047945674,0.3608,58830.0,58829.0,0.08524989]
[1725047946186,0.3618,58830.0,58829.0,0.08524989]
[1725047946490,0.446794,58830.0,58829.0,0.08524989]
[1725047946679,0.3618,58830.0,58829.0,0.08524989]
[1725047947084,0.446794,58830.0,58829.0,0.08524989]
[1725047947483,0.446794,58830.0,58829.0,0.00025489]
[1725047947484,0.531788,58830.0,58829.0,0.00025489]
[1725047947685,0.816782,58830.0,58829.0,0.00025489]
[1725047948196,1.316782,58830.0,58829.0,0.00025489]
[1725047948797,1.316782,58830.0,58810.0,0.085022]
[1725047948798,0.085026,58809.0,58794.0,0.085045]
[1725047948996,0.3608,58795.0,58787.0,0.2]
[1725047949289,0.3608,58788.0,58784.0,0.435761]
[1725047949481,0.3608,58788.0,58787.0,0.2]
[1725047949683,0.5078,58788.0,58787.0,0.2]
[1725047949882,0.5078,58788.0,58775.0,0.00866563]
[1725047950186,0.3608,58783.0,58780.0,0.0104143]
[1725047950490,0.3608,58788.0,58787.0,0.085057]
[1725047950787,0.3618,58788.0,58787.0,0.085057]
[1725047952000,0.51931488,58788.0,58787.0,0.085057]
[1725047952682,0.51931488,58788.0,58783.0,0.285062]
[1725047952878,0.3608,58784.0,58783.0,0.085062]
[1725047953193,0.50784,58784.0,58777.0,0.2]
[1725047953498,0.00025512,58793.0,58792.0,0.085049]
[1725047953684,0.00025512,58793.0,58792.0,0.285049]
[1725047953884,0.00025512,58793.0,58792.0,0.085049]
[1725047954593,0.00025512,58793.0,58782.0,0.3608]
[1725047954594,0.085055,58788.0,58782.0,0.085062]
[1725047954803,0.31823761,58783.0,58782.0,0.085062]
[1725047956183,0.31823761,58783.0,58777.0,0.28507]
[1725047956386,0.31823761,58783.0,58777.0,0.08507]
[1725047956387,0.3608,58778.0,58777.0,0.08507]
[1725047956587,0.3608,58778.0,58777.0,0.28507]
[1725047956981,0.14708,58790.0,58777.0,1.3104]
[1725047957190,0.3608,58792.0,58785.0,0.2]
[1725047957396,0.3608,58786.0,58783.0,0.085062]
[1725047957900,0.085059,58785.0,58783.0,0.085062]
[1725047958189,0.3608,58786.0,58779.0,0.085068]
[1725047958388,0.3608,58780.0,58779.0,0.085068]
[1725047959893,0.3608,58780.0,58774.0,0.0733]
[1725047960094,0.3608,58775.0,58774.0,0.158375]
[1725047960896,0.3608,58775.0,58774.0,0.085075]
[1725047961092,0.37244598,58780.0,58779.0,0.085068]
[1725047961289,0.00125512,58780.0,58779.0,0.370136]
[1725047961600,0.00125512,58780.0,58779.0,1.480536]
[1725047962699,0.00025512,58780.0,58779.0,1.480536]
[1725047963198,0.00025512,58780.0,58779.0,1.565604]
[1725047963397,0.3608,58798.0,58784.0,0.08506]
[1725047963590,0.3608,58798.0,58795.0,0.2]
[1725047963791,0.3608,58798.0,58797.0,0.085042]
[1725047963987,0.01023471,58800.0,58799.0,0.085039]
[1725047964187,0.3608,58800.0,58799.0,0.285039]
[1725047964402,0.3608,58800.0,58799.0,0.085039]
[1725047966396,0.3618,58800.0,58799.0,0.085039]
[1725047966701,0.3618,58800.0,58794.0,0.00025512]
[1725047966906,0.3608,58795.0,58794.0,0.00025512]
[1725047967194,0.3608,58795.0,58794.0,0.20025512]
[1725047967402,0.3608,58795.0,58794.0,0.28530112]
[1725047967992,0.3608,58795.0,58794.0,0.08530112]
[1725047968794,0.445845,58795.0,58794.0,0.08530112]
[1725047969103,0.3608,58795.0,58794.0,0.08530112]
[1725047969304,0.445845,58795.0,58794.0,0.08530112]
[1725047969599,0.445845,58795.0,58794.0,0.00025512]
[1725047970104,1.56655633,58795.0,58794.0,0.00025512]
[1725047970299,1.56655633,58795.0,58787.0,0.3286]
[1725047970300,0.5,58794.0,58787.0,0.3286]
[1725047970603,0.3608,58788.0,58787.0,0.3286]
[1725047970898,0.3608,58788.0,58787.0,0.413657]
[1725047971200,0.50788,58788.0,58787.0,0.413657]
[1725047971401,0.70788,58788.0,58787.0,0.3286]
[1725047972100,0.792935,58788.0,58787.0,0.3286]
[1725047972301,0.70788,58788.0,58787.0,0.3286]
[1725047972696,0.7219838,58788.0,58787.0,0.3286]
[1725047973093,0.3749038,58788.0,58787.0,0.413657]
[1725047973503,0.5219838,58788.0,58787.0,0.413657]
[1725047973692,0.3749038,58788.0,58787.0,0.413657]
[1725047974089,0.3648,58788.0,58787.0,0.413657]
[1725047974999,0.3648,58788.0,58787.0,0.085057]
[1725047976293,0.3648,58788.0,58787.0,1.726291]
[1725047976294,0.004,58788.0,58787.0,1.726291]
[1725047976498,0.004,58788.0,58787.0,1.365491]
[1725047976794,0.004,58788.0,58787.0,1.195377]
[1725047977003,0.004,58788.0,58787.0,0.595377]
[1725047977303,0.00025512,58805.0,58793.0,0.085048]
[1725047977511,0.085034,58803.0,58802.0,0.2]
[1725047977692,0.00025512,58805.0,58800.0,0.085037]
[1725047977693,0.36105512,58805.0,58800.0,0.085037]
[1725047977898,0.2,58801.0,58791.0,0.2]
[1725047978093,0.3608,58792.0,58783.0,0.01008425]
[1725047978407,0.3608,58787.0,58786.0,0.085057]
[1725047978807,0.3608,58787.0,58784.0,0.085061]
[1725047979003,0.08506,58785.0,58784.0,0.085061]
[1725047979203,0.085065,58782.0,58781.0,0.085065]
[1725047979504,0.445865,58782.0,58781.0,0.085065]
[1725047980004,0.085067,58780.0,58779.0,0.13592749]
[1725047980200,0.3608,58782.0,58781.0,0.085065]
[1725047980507,0.3608,58782.0,58781.0,0.285065]
[1725047980702,0.3608,58782.0,58781.0,0.595425]
[1725047981004,0.37115203,58787.0,58786.0,0.085058]
[1725047981206,0.37115203,58787.0,58786.0,0.285058]
[1725047981406,0.3608,58787.0,58786.0,0.285058]
[1725047981908,0.154451,58791.0,58786.0,0.285058]
[1725047982101,0.154451,58791.0,58790.0,0.085052]
[1725047982405,0.07959188,58791.0,58790.0,0.085052]
[1725047983204,0.01719188,58791.0,58790.0,0.085052]
[1725047983406,0.007,58791.0,58790.0,0.085052]
[1725047984096,0.007,58791.0,58780.0,0.32948]
[1725047984097,0.007,58791.0,58785.0,0.085058]
[1725047984298,0.5608,58786.0,58781.0,0.085065]
[1725047984507,0.3608,58782.0,58781.0,0.085065]
[1725047985304,0.085068,58780.0,58775.0,0.2]
[1725047985510,0.3608,58776.0,58775.0,0.2]
[1725047985900,0.3608,58776.0,58775.0,0.285074]
[1725047986908,0.3618,58776.0,58775.0,0.285074]
[1725047987407,0.7226,58776.0,58773.0,0.085077]
[1725047987712,0.807672,58776.0,58775.0,0.085074]
[1725047988307,0.807672,58776.0,58773.0,0.085075]
[1725047988308,0.085075,58774.0,58773.0,0.085075]
[1725047989006,0.085078,58772.0,58771.0,0.3286]
[1725047989205,0.2,58773.0,58772.0,0.085078]
[1725047989520,0.085076,58774.0,58772.0,0.085078]
[1725047990098,0.0742,58775.0,58773.0,0.085076]
[1725047991011,0.159275,58775.0,58770.0,0.2]
[1725047991310,0.3608,58771.0,58770.0,0.2]
[1725047991496,0.3608,58771.0,58770.0,0.285081]
[1725047991700,0.3608,58771.0,58766.0,0.2]
[1725047991899,0.3608,58771.0,58768.0,0.085084]
[1725047991900,0.085083,58769.0,58768.0,0.085084]
[1725047992101,0.3608,58771.0,58770.0,0.085081]
[1725047992912,0.3618,58771.0,58770.0,0.085081]
[1725047993810,1.67228,58771.0,58764.0,0.085088]
[1725047994007,1.67228,58771.0,58754.0,0.05085949]
[1725047994008,0.3608,58765.0,58754.0,0.05085949]
[1725047994206,0.7216,58755.0,58754.0,0.05085949]
[1725047994409,0.7216,58755.0,58754.0,0.13596349]
[1725047994708,0.7216,58755.0,58754.0,0.05085949]
[1725047995513,0.7226,58755.0,58754.0,0.13596349]
[1725047996215,0.3618,58755.0,58754.0,0.085104]
[1725047996712,0.001,58755.0,58754.0,0.085104]
[1725047997508,0.3608,58758.0,58757.0,0.0851]
[1725047998104,0.5608,58758.0,58753.0,0.085106]
[1725047998308,0.2,58754.0,58744.0,0.0705]
[1725047998509,0.3608,58747.0,58746.0,0.35292865]
[1725047998707,0.3608,58747.0,58746.0,0.285116]
[1725047998910,0.3608,58747.0,58746.0,0.085116]
[1725047999304,0.7216,58747.0,58746.0,0.085116]
[1725047999716,0.7216,58747.0,58736.0,0.3286]
[1725048000017,0.3608,58738.0,58737.0,0.085129]
[1725048001714,0.3618,58738.0,58737.0,1.195889]
[1725048002020,0.50156001,58753.0,58751.0,0.085109]
[1725048002021,0.00156001,58753.0,58751.0,0.085109]
[1725048002313,0.37098377,58760.0,58751.0,0.370218]
[1725048002517,0.37098377,58760.0,58751.0,0.880858]
[1725048002708,0.37098377,58760.0,58751.0,0.965967]
[1725048002901,0.3608,58760.0,58751.0,0.965967]
[1725048003105,1.2e-07,58752.0,58751.0,1.926767]
[1725048003305,0.3608,58773.0,58751.0,1.68013559]
[1725048003513,0.3608,58773.0,58772.0,0.085078]
[1725048004710,0.014,58773.0,58772.0,0.285078]
[1725048005016,0.014,58773.0,58772.0,0.370156]
[1725048005214,0.014,58773.0,58772.0,0.645878]
[1725048005418,0.00025534,58778.0,58777.0,0.085071]
[1725048006916,0.5709,58790.0,58777.0,0.085071]
[1725048006917,0.5,58797.0,58778.0,0.51036]
[1725048007119,0.3608,58803.0,58802.0,0.085035]
[1725048007519,0.37119819,58803.0,58802.0,0.085035]
[1725048008421,0.36105512,58808.0,58807.0,0.085028]
[1725048008617,0.01077759,58808.0,58807.0,0.085028]
[1725048009120,0.00025512,58808.0,58807.0,0.085028]
[1725048010418,0.36105512,58808.0,58807.0,0.085028]
[1725048010618,0.00025512,58808.0,58807.0,0.170056]
[1725048010828,0.00025512,58808.0,58807.0,1.366204]
[1725048010829,1.2e-07,58808.0,58807.0,1.366204]
[1725048011122,0.0744,58828.0,58807.0,1.366204]
[1725048011123,0.3608,58837.0,58830.0,0.084994]
[1725048011312,0.3608,58837.0,58828.0,0.084997]
[1725048011313,0.3608,58831.0,58828.0,0.084997]
[1725048011712,0.3608,58831.0,58819.0,0.25]
[1725048011713,0.084999,58827.0,58819.0,0.085009]
[1725048011909,0.6108,58820.0,58807.0,0.001]
[1725048012125,0.3608,58815.0,58814.0,0.085018]
[1725048012512,0.3608,58815.0,58808.0,0.00025512]
[1725048012513,0.87088,58815.0,58808.0,0.00025512]
[1725048012716,0.3608,58815.0,58814.0,0.085018]
[1725048012917,0.3468,58815.0,58814.0,0.085018]
[1725048013118,0.00025512,58819.0,58814.0,0.3608]
[1725048013320,0.00025512,58819.0,58809.0,0.3608]
[1725048013321,1.2e-07,58819.0,58818.0,0.780824]
[1725048013507,1.2e-07,58819.0,58818.0,0.695812]
[1725048013821,1.2e-07,58819.0,58818.0,0.335012]
[1725048014118,1.2e-07,58819.0,58818.0,0.930064]
[1725048014320,1.2e-07,58819.0,58818.0,0.335012]
[1725048014821,1.2e-07,58819.0,58818.0,0.420024]
[1725048015022,1.2e-07,58819.0,58818.0,0.085012]
[1725048015315,0.25000012,58819.0,58806.0,0.25]
[1725048015522,0.25000012,58819.0,58803.0,0.085032]
[1725048015523,1.2e-07,58819.0,58811.0,0.25]
[1725048016021,1.2e-07,58819.0,58802.0,0.0715]
[1725048016022,0.01400012,58819.0,58818.0,0.170024]
[1725048016531,0.00800012,58819.0,58818.0,0.170024]
[1725048017030,0.4294,58836.0,58835.0,0.084987]
[1725048017319,0.4294,58836.0,58831.0,0.084993]
[1725048017724,0.334987,58835.0,58831.0,0.084993]
[1725048017916,0.084991,58833.0,58828.0,0.084997]
[1725048018117,0.75992,58835.0,58829.0,0.084996]
[1725048018118,0.3608,58830.0,58829.0,0.084996]
[1725048018713,0.3608,58830.0,58829.0,0.083996]
[1725048019118,0.43596001,58836.0,58835.0,0.084987]
[1725048019315,0.4344,58836.0,58835.0,0.084987]
[1725048019522,0.3658,58836.0,58835.0,0.084987]
[1725048020015,0.3658,58836.0,58835.0,0.083987]
[1725048020219,0.00025512,58839.0,58838.0,0.084983]
[1725048020627,0.00025512,58839.0,58838.0,0.083983]
[1725048020816,1.36013512,58839.0,58835.0,0.001]
[1725048021127,0.445786,58836.0,58835.0,0.001]
[1725048021626,0.445786,58836.0,58827.0,0.00025512]
[1725048021627,1.47068,58836.0,58827.0,0.00025512]
[1725048021831,0.3608,58828.0,58827.0,0.00025512]
[1725048022028,0.445797,58828.0,58827.0,0.00025512]
[1725048022334,1.554757,58828.0,58827.0,0.00025512]
[1725048022830,1.554757,58828.0,58827.0,0.00125512]
[1725048023319,0.085002,58825.0,58819.0,0.08501]
[1725048023525,0.085002,58825.0,58820.0,0.085009]
[1725048023719,0.3608,58821.0,58820.0,0.085009]
[1725048023914,0.3608,58821.0,58810.0,0.25]
[1725048024112,0.08501,58820.0,58810.0,0.25025512]
[1725048024316,0.08401,58820.0,58816.0,0.085014]
[1725048024516,0.08401,58820.0,58817.0,0.085013]
[1725048025218,0.08301,58820.0,58817.0,0.085013]
[1725048025727,0.085014,58817.0,58811.0,0.085022]
[1725048025916,0.97185512,58821.0,58812.0,0.08502]
[1725048025917,0.3608,58814.0,58812.0,0.08502]
[1725048026222,0.3608,58814.0,58813.0,0.085019]
[1725048026223,0.3598,58814.0,58813.0,0.085019]
[1725048026534,0.167609,58820.0,58814.0,0.085017]
[1725048026730,0.167609,58820.0,58813.0,0.3608]
[1725048026925,0.0686,58820.0,58819.0,0.08501]
[1725048027222,0.0746,58820.0,58819.0,0.08501]
[1725048028131,0.0686,58820.0,58819.0,0.08501]
[1725048028326,0.0746,58820.0,58819.0,0.001]
[1725048028523,0.0886,58820.0,58819.0,0.08601]
[1725048028926,0.02,58820.0,58819.0,0.08601]
[1725048029135,0.006,58820.0,58819.0,0.08601]
[1725048029428,0.02,58820.0,58819.0,0.44781]
[1725048029815,0.006,58820.0,58819.0,0.44681]
[1725048030021,0.021,58820.0,58819.0,0.44781]
[1725048032132,0.007,58820.0,58819.0,0.44681]
[1725048033327,0.021,58820.0,58819.0,0.44781]
[1725048033527,0.02,58820.0,58819.0,0.44781]
[1725048034828,0.02,58820.0,58819.0,0.78282]
[1725048035032,0.014,58820.0,58819.0,0.78282]
[1725048035229,0.014,58820.0,58819.0,0.44681]
[1725048035230,0.006,58820.0,58819.0,0.44681]
[1725048035433,0.02,58820.0,58819.0,0.53282]
[1725048035624,0.02,58820.0,58819.0,0.44781]
[1725048036023,0.02,58820.0,58819.0,0.53282]
[1725048036226,0.02,58820.0,58819.0,0.73282]
[1725048036627,0.02,58820.0,58819.0,0.81783]
[1725048036824,0.02,58820.0,58819.0,0.73282]
[1725048038641,0.02,58820.0,58819.0,0.002]
[1725048038642,0.190018,58820.0,58819.0,0.002]
[1725048038936,0.105009,58820.0,58819.0,0.002]
[1725048039723,0.02,58820.0,58819.0,0.44781]
[1725048039925,0.02,58820.0,58819.0,1.72787]
[1725048040128,0.02,58820.0,58819.0,1.94167]
[1725048040336,0.5,58837.0,58820.0,0.595049]
[1725048040535,0.3608,58838.0,58837.0,0.084984]
[1725048040536,0.00156001,58838.0,58837.0,0.084984]
[1725048040736,0.084979,58841.0,58840.0,0.08498]
[1725048040926,0.09545885,58841.0,58840.0,0.08498]
[1725048041926,0.08498,58840.0,58836.0,0.445785]
[1725048042129,0.08498,58840.0,58838.0,0.084982]
[1725048042631,0.01047985,58841.0,58839.0,0.084981]
[1725048042839,0.084977,58842.0,58840.0,0.001]
[1725048043033,0.008,58841.0,58840.0,0.001]
[1725048043229,0.3688,58841.0,58840.0,0.001]
[1725048043437,0.008,58840.0,58839.0,0.084981]
[1725048043640,0.084981,58839.0,58838.0,0.002]
[1725048043844,0.594861,58839.0,58838.0,0.002]
[1725048044032,1.194861,58839.0,58838.0,0.002]
[1725048044340,1.193861,58839.0,58838.0,0.001]
[1725048045040,0.008,58840.0,58835.0,0.56105512]
[1725048045245,0.008,58842.0,58840.0,0.001]
[1725048045425,0.008,58842.0,58840.0,0.08598]
[1725048045630,0.01050756,58843.0,58842.0,0.084977]
[1725048045829,0.2,58844.0,58842.0,0.084977]
[1725048046845,0.284975,58844.0,58842.0,0.085977]
[1725048047027,0.084976,58843.0,58842.0,0.086977]
[1725048048443,0.334976,58843.0,58842.0,0.001]
[1725048048635,0.701776,58843.0,58842.0,0.002]
[1725048048949,0.701776,58843.0,58835.0,0.00025512]
[1725048048950,0.084977,58842.0,58835.0,0.00025512]
[1725048049243,0.084986,58836.0,58835.0,0.00025512]
[1725048049632,0.084986,58836.0,58835.0,0.08524212]
[1725048049836,0.084981,58840.0,58837.0,0.084983]
[1725048050043,0.084981,58839.0,58837.0,0.084983]
[1725048050745,0.006,58842.0,58837.0,0.084983]
[1725048051743,0.75888001,58843.0,58837.0,0.084983]
[1725048051939,0.084979,58841.0,58835.0,0.00125512]
[1725048052345,0.084979,58841.0,58837.0,0.001]
[1725048052546,0.084979,58841.0,58839.0,0.08498]
[1725048052746,0.08498,58840.0,58839.0,0.08498]
[1725048053534,0.003,58841.0,58837.0,0.001]
[1725048053745,0.445783,58838.0,58837.0,0.001]
[1725048054141,0.954663,58838.0,58837.0,0.001]
[1725048054341,0.593863,58838.0,58837.0,0.001]
[1725048054543,0.083983,58838.0,58837.0,0.084984]
[1725048054748,0.083983,58838.0,58837.0,0.085984]
[1725048055146,0.083983,58838.0,58835.0,0.00025512]
[1725048055147,0.003,58840.0,58835.0,0.00025512]
[1725048055352,0.003,58840.0,58839.0,0.084981]
[1725048055855,0.239337,58843.0,58840.0,0.084979]
[1725048056152,0.084977,58842.0,58840.0,0.084979]
[1725048056350,0.084977,58842.0,58841.0,0.084979]
[1725048056943,0.15436,58843.0,58842.0,0.084977]
[1725048057351,0.01038437,58844.0,58843.0,0.084976]
[1725048057652,0.00025512,58846.0,58845.0,0.084973]
[1725048057856,0.00025512,58846.0,58845.0,0.169946]
[1725048058266,0.00025512,58846.0,58845.0,0.084973]
[1725048058643,0.07156005,58846.0,58845.0,0.084973]
[1725048058849,0.06121972,58846.0,58845.0,0.084973]
[1725048059356,0.06096379,58857.0,58845.0,1.2018]
[1725048059657,0.00156001,58859.0,58858.0,0.084954]
[1725048059859,0.084954,58859.0,58851.0,0.3608]
[1725048060049,0.24,58864.0,58851.0,0.3608]
[1725048060050,0.084945,58864.0,58851.0,0.3608]
[1725048060247,0.33542792,58864.0,58851.0,0.3608]
[1725048060452,0.0002549,58863.0,58853.0,0.084961]
[1725048060649,0.0002549,58863.0,58852.0,0.0002549]
[1725048060853,0.6008,58855.0,58852.0,0.0002549]
[1725048061252,0.08496,58854.0,58852.0,0.0002549]
[1725048061453,0.6024,58855.0,58852.0,0.0002549]
[1725048061755,0.003,58859.0,58856.0,0.084956]
[1725048062763,0.087953,58859.0,58852.0,0.0002549]
[1725048062958,0.003,58855.0,58852.0,0.0012549]
[1725048063758,0.087953,58859.0,58856.0,0.001]
[1725048064066,0.003,58859.0,58856.0,0.001]
[1725048064564,0.3608,58862.0,58855.0,0.084957]
[1725048065675,0.445748,58862.0,58855.0,0.084957]
[1725048066058,0.445748,58862.0,58852.0,0.2412549]
[1725048066263,0.003,58859.0,58856.0,0.001]
[1725048066873,0.445748,58862.0,58857.0,0.084955]
[1725048067168,0.3638,58862.0,58855.0,0.001]
[1725048067466,0.3638,58862.0,58861.0,0.08495]
[1725048067672,0.3608,58862.0,58861.0,0.08495]
[1725048068169,0.0002549,58863.0,58862.0,0.084948]
[1725048068669,0.0612057,58863.0,58862.0,0.169896]
[1725048068970,0.0612057,58863.0,58862.0,0.615644]
[1725048069968,0.0612057,58863.0,58862.0,0.616644]
[1725048070181,0.0642057,58863.0,58862.0,0.617644]
[1725048071670,0.0642057,58863.0,58862.0,1.727324]
[1725048073384,0.0642057,58863.0,58862.0,0.732696]
[1725048073572,0.0642057,58863.0,58862.0,0.647748]
[1725048073770,1.8436289,58863.0,58862.0,0.002]
[1725048073972,0.08496,58854.0,58853.0,0.3608]
[1725048075379,0.08496,58854.0,58852.0,0.2852169]
[1725048075673,0.08896,58854.0,58853.0,0.001]
[1725048075976,0.08896,58854.0,58853.0,0.002]
[1725048076578,0.01410959,58854.0,58853.0,0.001]
[1725048076965,0.01410959,58854.0,58852.0,0.0872169]
[1725048077183,0.2,58853.0,58852.0,0.0012549]
[1725048077380,0.199,58853.0,58852.0,0.0012549]
[1725048077679,0.01510959,58854.0,58852.0,0.0012549]
[1725048077980,0.005,58854.0,58853.0,0.084961]
[1725048078884,0.004,58854.0,58853.0,0.084961]
[1725048079277,0.01024083,58857.0,58854.0,0.084959]
[1725048079477,0.084951,58861.0,58852.0,0.0012549]
[1725048079478,0.004,58854.0,58853.0,0.085961]
[1725048079778,0.005,58854.0,58853.0,0.086961]
[1725048082175,0.004,58854.0,58853.0,0.085961]
[1725048082478,0.004,58854.0,58853.0,0.001]
[1725048082479,0.445761,58854.0,58853.0,0.001]
[1725048082673,0.3608,58854.0,58853.0,0.001]
[1725048082873,0.3618,58854.0,58853.0,0.085961]
[1725048083874,0.42989867,58854.0,58853.0,0.084961]
[1725048084076,0.43089867,58854.0,58853.0,0.086961]
[1725048084276,0.43489867,58854.0,58853.0,0.086961]
[1725048084488,1.56866196,58854.0,58853.0,0.002]
[1725048084680,1.02961867,58854.0,58853.0,0.002]
[1725048084875,2.06866196,58854.0,58853.0,0.002]
[1725048085077,1.52961867,58854.0,58853.0,0.002]
[1725048085276,0.93489867,58854.0,58853.0,0.086961]